bitfinex/quotes_SOLUSD_20241001
["timestamp","ask_amount","ask_price","bid_price","bid_amount"]
[1727813535837,1.46504629,143.87,143.86,23.776884]
[1727813536741,34.7315,143.98,143.86,75.16627394]
[1727813536742,1.46504629,143.92,143.86,75.16627394]
[1727813536947,1.46504629,143.92,143.91,23.776884]
[1727813537318,1.46504629,143.94,143.91,23.776884]
[1727813537519,1.46504629,143.94,143.93,23.776884]
[1727813538557,13.0689,144.03,143.91,73.776884]
[1727813538558,1.46504629,143.96,143.91,73.776884]
[1727813538844,1.46504629,143.98,143.94,23.776884]
[1727813539141,0.822759,144.05,143.94,23.776884]
[1727813539142,1.46504629,143.97,143.94,23.776884]
[1727813539439,1.46504629,143.97,143.93,23.776884]
[1727813539741,1.46504629,143.97,143.93,87.21008254]
[1727813539953,1.46504629,143.97,143.95,23.776884]
[1727813540542,1.46504629,144.02,143.97,23.776884]
[1727813540744,0.822759,144.05,143.99,87.21008254]
[1727813540745,1.46504629,144.04,143.99,87.21008254]
[1727813540928,0.822759,144.05,143.99,87.21008254]
[1727813540929,1.46504629,144.02,143.99,87.21008254]
[1727813541126,1.46504629,144.0,143.99,23.776884]
[1727813541531,1.46504629,144.02,143.99,23.776884]
[1727813541751,1.46504629,144.02,144.01,23.776884]
[1727813541955,1.46504629,144.04,143.99,87.21008254]
[1727813542355,1.46504629,144.04,144.01,23.776884]
[1727813542652,1.46504629,144.04,144.03,23.776884]
[1727813543160,0.822759,144.05,144.0,23.776884]
[1727813543161,1.46504629,144.01,144.0,23.776884]
[1727813543655,1.46504629,144.03,144.0,23.776884]
[1727813544148,2.28780529,144.05,144.02,63.43319854]
[1727813544358,2.28780529,144.05,144.03,25.16461852]
[1727813544536,2.28780529,144.05,144.03,23.776884]
[1727813546353,1.46504629,144.09,144.05,23.776884]
[1727813546651,1.46504629,144.09,144.07,23.776884]
[1727813547850,1.46504629,144.07,144.0,73.776884]
[1727813548048,1.46504629,144.07,144.03,23.776884]
[1727813548245,0.61158947,144.16,144.06,23.776884]
[1727813548246,1.25349629,144.08,144.06,23.776884]
[1727813548851,1.25349629,144.08,144.05,2.780136]
[1727813548852,1.25349629,144.06,144.05,2.780136]
[1727813549155,1.25349629,144.08,144.05,2.780136]
[1727813549648,1.25349629,144.08,144.05,41.69487367]
[1727813550059,1.25349629,144.12,144.05,41.69487367]
[1727813550234,1.25349629,144.1,144.06,23.776884]
[1727813550431,1.25349629,144.12,144.09,23.776884]
[1727813550739,1.25349629,144.12,144.05,2.780136]
[1727813550740,1.25349629,144.07,144.05,41.69487367]
[1727813550950,1.25349629,144.1,144.05,41.69487367]
[1727813551255,1.25349629,144.06,144.02,88.91473767]
[1727813551432,6.2074,144.18,143.99,46.53604202]
[1727813551433,1.25349629,144.11,144.07,50.0]
[1727813551641,1.25349629,144.12,144.09,88.91473767]
[1727813551942,1.25349629,144.12,144.09,38.91473767]
[1727813552261,1.25349629,144.14,144.09,38.91473767]
[1727813552448,1.25349629,144.11,144.1,23.776884]
[1727813552637,1.25349629,144.15,144.1,23.776884]
[1727813552960,1.25349629,144.15,144.07,7.96889047]
[1727813552961,1.25349629,144.15,144.12,62.69162167]
[1727813553255,2.07625529,144.19,144.15,23.776884]
[1727813553465,1.25349629,144.17,144.16,64.078035]
[1727813553750,0.822759,144.19,144.17,23.776884]
[1727813553751,1.25349629,144.18,144.17,23.776884]
[1727813553957,0.822759,144.19,144.14,23.776884]
[1727813553958,1.25349629,144.15,144.14,23.776884]
[1727813554150,1.25349629,144.13,144.1,38.91473767]
[1727813554363,1.25349629,144.16,144.11,51.38691501]
[1727813554534,1.25349629,144.16,144.13,38.91473767]
[1727813554739,1.25349629,144.16,144.14,1.38670749]
[1727813555146,1.25349629,144.18,144.13,127.82947534]
[1727813555342,1.25349629,144.18,144.17,23.776884]
[1727813555547,0.822759,144.19,144.17,25.16331168]
[1727813556053,2.07625529,144.19,144.17,25.16310991]
[1727813556225,2.07625529,144.19,144.17,23.776884]
[1727813556430,0.822759,144.19,144.17,73.776884]
[1727813556647,0.822759,144.19,144.17,23.776884]
[1727813557374,0.822759,144.19,144.17,73.776884]
[1727813557658,6.5105,144.41,144.19,50.0]
[1727813557863,6.9282,144.34,144.23,23.776884]
[1727813558451,2.61158947,144.34,144.23,23.776884]
[1727813558632,0.61158947,144.38,144.25,23.776884]
[1727813558834,0.61158947,144.38,144.27,23.776884]
[1727813558835,7.9699852,144.35,144.27,23.776884]
[1727813559138,7.9699852,144.35,144.25,23.776884]
[1727813559335,1.0420852,144.35,144.25,62.69162167]
[1727813559965,1.0420852,144.35,144.27,23.776884]
[1727813560163,1.0420852,144.35,144.29,23.776884]
[1727813560354,1.0420852,144.35,144.3,1.38533974]
[1727813560538,1.0420852,144.35,144.26,23.776884]
[1727813560740,7.9696852,144.35,144.21,50.0]
[1727813560936,7.9696852,144.35,144.22,23.776884]
[1727813561158,7.9696852,144.35,144.24,23.776884]
[1727813561460,7.9696852,144.35,144.23,38.91473767]
[1727813561461,0.61158947,144.34,144.23,38.91473767]
[1727813561755,1.0420852,144.35,144.23,38.91473767]
[1727813561946,6.9285,144.34,144.23,38.91473767]
[1727813562152,1.0420852,144.35,144.23,88.91473767]
[1727813562359,1.0420852,144.35,144.24,1.38547136]
[1727813562554,1.0420852,144.35,144.25,1.38546922]
[1727813562942,1.0420852,144.35,144.26,62.69162167]
[1727813563361,1.0420852,144.35,144.26,112.69162167]
[1727813563747,1.0420852,144.35,144.3,23.776884]
[1727813563955,1.0420852,144.35,144.31,1.38510179]
[1727813564157,1.0420852,144.35,144.26,88.91473767]
[1727813564359,1.0420852,144.35,144.27,23.776884]
[1727813565264,1.0420852,144.35,144.29,23.776884]
[1727813565448,1.0420852,144.35,144.29,25.16204669]
[1727813565647,1.0420852,144.35,144.26,38.91473767]
[1727813565855,1.0420852,144.35,144.27,23.776884]
[1727813566048,1.0420852,144.35,144.27,25.16217557]
[1727813566749,1.0420852,144.35,144.29,38.91473767]
[1727813566957,1.0420852,144.35,144.3,23.776884]
[1727813567239,1.0420852,144.35,144.27,23.776884]
[1727813567567,1.0420852,144.35,144.29,23.776884]
[1727813567746,1.0420852,144.35,144.27,23.776884]
[1727813568641,1.0420852,144.35,143.43,669.85673233]
[1727813568642,1.0420852,144.35,144.2,50.0]
[1727813568842,6.9298,144.31,144.2,38.91473767]
[1727813569068,6.0923,144.33,144.18,23.07316104]
[1727813569069,6.9308,144.29,144.18,23.07316104]
[1727813569244,6.9301,144.3,144.18,23.07316104]
[1727813569439,6.9301,144.3,144.19,1.38605298]
[1727813569666,6.0923,144.33,144.2,90.30080018]
[1727813570077,6.0923,144.33,144.23,38.91473767]
[1727813570254,6.0923,144.33,144.23,88.91473767]
[1727813570443,6.0923,144.33,144.24,1.38555822]
[1727813570649,1.0420852,144.35,144.23,88.91473767]
[1727813570650,1.0420852,144.35,144.27,23.776884]
[1727813570878,1.0420852,144.35,144.29,23.776884]
[1727813571570,1.0420852,144.35,144.29,72.03273437]
[1727813571870,1.0420852,144.35,144.29,62.69162167]
[1727813572377,1.0420852,144.35,144.32,38.91473767]
[1727813572548,1.0420852,144.35,144.33,23.776884]
[1727813572755,0.5420852,144.35,144.29,38.91473767]
[1727813572975,0.5420852,144.35,144.3,23.776884]
[1727813573281,0.5420852,144.35,144.3,25.16206064]
[1727813573588,0.5420852,144.35,144.3,23.776884]
[1727813574000,0.5420852,144.35,144.26,38.91473767]
[1727813574159,0.5420852,144.35,144.27,9.3411127]
[1727813574471,0.5420852,144.35,144.29,38.91473767]
[1727813574684,0.5420852,144.35,144.32,38.91473767]
[1727813575167,0.5420852,144.35,144.33,23.776884]
[1727813575576,0.5420852,144.35,144.33,30.035984]
[1727813576256,0.5420852,144.35,144.29,46.27851566]
[1727813576457,0.5420852,144.35,144.3,6.2591]
[1727813577148,0.5420852,144.35,144.31,1.38511159]
[1727813578251,0.5420852,144.35,144.31,23.776884]
[1727813578563,0.5420852,144.35,144.32,1.38511757]
[1727813578871,0.5420852,144.35,144.3,6.2591]
[1727813579797,0.5420852,144.35,144.26,38.91473767]
[1727813580283,0.5420852,144.35,144.29,88.91473767]
[1727813580457,0.3251424,144.39,144.33,50.0]
[1727813580654,6.1222,144.47,144.37,38.91473767]
[1727813580952,6.1222,144.47,144.38,1.38433943]
[1727813581278,6.1222,144.47,144.35,50.0]
[1727813581279,6.924,144.43,144.32,38.91473767]
[1727813581476,6.9244,144.42,144.32,38.91473767]
[1727813581679,6.9247,144.41,144.29,9.3411127]
[1727813581885,0.61158947,144.45,144.28,16.1612]
[1727813581886,6.9252,144.4,144.28,16.1612]
[1727813582174,6.9257,144.39,144.28,16.1612]
[1727813582484,0.61158947,144.43,144.28,16.1612]
[1727813582685,0.61158947,144.43,144.28,25.5023127]
[1727813582854,0.61158947,144.43,144.27,38.91473767]
[1727813582855,6.5002,144.38,144.27,38.91473767]
[1727813583063,6.5002,144.38,144.28,18.65412974]
[1727813583278,6.5002,144.38,144.3,38.91473767]
[1727813583477,6.5002,144.38,144.31,1.3850591]
[1727813583852,6.5002,144.38,144.3,38.91473767]
[1727813584177,16.0422,144.41,144.31,23.776884]
[1727813584363,6.3896,144.42,144.32,51.38486202]
[1727813584567,6.3896,144.42,144.33,62.69162167]
[1727813584768,21.9799,144.46,144.33,62.69162167]
[1727813584769,15.0575,144.46,144.37,23.776884]
[1727813585690,15.0575,144.46,144.36,38.91473767]
[1727813585691,6.3896,144.47,144.39,23.776884]
[1727813585878,6.3896,144.47,144.4,1.38430374]
[1727813586066,6.3896,144.47,144.39,23.776884]
[1727813587064,6.3896,144.47,144.4,1.38432656]
[1727813587468,6.3896,144.47,144.41,23.776884]
[1727813587777,6.3896,144.47,144.42,1.38418521]
[1727813588084,0.822759,144.48,144.43,1.38414169]
[1727813588376,0.822759,144.48,144.44,23.776884]
[1727813588597,0.822759,144.48,144.45,1.38390475]
[1727813589076,0.822759,144.48,144.46,23.776884]
[1727813589293,6.0451,144.57,144.48,23.776884]
[1727813589889,6.0451,144.57,144.47,73.776884]
[1727813590256,12.9622,144.57,144.46,38.91473767]
[1727813590475,12.9622,144.57,144.44,23.776884]
[1727813590476,6.9185,144.54,144.44,23.776884]
[1727813590878,6.9185,144.54,144.41,50.0]
[1727813590879,0.1798377,144.54,144.43,23.776884]
[1727813591260,0.1798377,144.54,144.45,23.776884]
[1727813591557,15.9200377,144.54,144.39,104.29343767]
[1727813591756,6.9204,144.5,144.39,104.29343767]
[1727813591977,6.9195,144.52,144.39,113.63455037]
[1727813592181,15.9200377,144.54,144.42,38.91473767]
[1727813592569,22.8385377,144.54,144.42,38.91473767]
[1727813593181,15.9200377,144.54,144.43,73.776884]
[1727813593487,0.1798377,144.54,144.46,23.776884]
[1727813594187,0.1798377,144.54,144.48,23.776884]
[1727813594380,0.1798377,144.54,144.46,23.776884]
[1727813594562,0.1798377,144.54,144.5,23.776884]
[1727813594885,0.1798377,144.54,144.49,23.776884]
[1727813596873,0.1798377,144.54,144.51,62.69162167]
[1727813597263,0.1798377,144.54,144.53,23.776884]
[1727813597472,0.1798377,144.54,144.51,62.69162167]
[1727813597785,0.1798377,144.54,144.53,23.776884]
[1727813599594,0.1798377,144.54,144.53,1.38297721]
[1727813599762,0.1798377,144.54,144.53,23.776884]
[1727813599974,0.1798377,144.54,144.53,25.15980416]
[1727813600678,0.1798377,144.54,144.53,23.776884]
[1727813601872,0.1798377,144.54,144.53,1.38290262]
[1727813602269,0.1798377,144.54,144.48,55.06003767]
[1727813602487,32.3046,144.64,144.48,55.06003767]
[1727813602488,11.33663267,144.64,144.48,55.06003767]
[1727813602703,20.0,144.64,144.48,55.06003767]
[1727813602872,0.2193262,144.65,144.49,51.38306103]
[1727813603075,0.2193262,144.65,144.51,88.91473767]
[1727813603272,0.2193262,144.65,144.52,1.3828305]
[1727813603501,0.2193262,144.65,144.53,23.776884]
[1727813603690,6.9143,144.63,144.55,23.776884]
[1727813603887,0.2193262,144.65,144.52,23.776884]
[1727813604194,6.9151,144.61,144.52,23.776884]
[1727813604399,6.9158,144.6,144.52,23.776884]
[1727813604574,2.2193262,144.65,144.49,9.99616825]
[1727813604906,2.2193262,144.65,144.48,55.06003767]
[1727813604907,6.9162,144.59,144.48,55.06003767]
[1727813605076,6.9166,144.58,144.48,55.06003767]
[1727813605477,6.9161,144.59,144.48,55.06003767]
[1727813605886,6.917,144.57,144.48,16.1453]
[1727813606299,6.1307,144.61,144.45,6.6583]
[1727813606300,17.2902,144.6,144.45,6.6583]
[1727813606469,42.7072,144.61,144.45,6.6583]
[1727813606790,20.0,144.57,144.44,9.99616825]
[1727813607003,20.0,144.57,144.43,15.5431]
[1727813607388,20.0,144.54,144.44,1.38383194]
[1727813607584,20.0,144.52,144.38,23.0284]
[1727813607786,20.0,144.52,144.38,16.1074]
[1727813608093,6.3055,144.53,144.35,7.38701538]
[1727813608094,20.0,144.5,144.35,7.38701538]
[1727813608421,20.0,144.5,144.35,16.196956]
[1727813608593,6.9219,144.47,144.35,16.196956]
[1727813608789,6.9219,144.47,144.36,8.95168927]
[1727813608991,20.0,144.48,144.36,8.95168927]
[1727813609187,20.0,144.48,144.33,25.05908927]
[1727813609419,6.9243,144.42,144.33,34.05512419]
[1727813609699,6.9247,144.41,144.33,34.05512419]
[1727813609916,6.925,144.41,144.3,7.2471832]
[1727813610122,8.9781,144.44,144.3,7.2471832]
[1727813610123,6.9243,144.42,144.3,7.2471832]
[1727813610509,8.9781,144.44,144.3,7.2471832]
[1727813610812,8.9781,144.44,144.28,8.99603492]
[1727813610813,6.926,144.39,144.28,8.99603492]
[1727813611124,6.9266,144.38,144.25,32.40990442]
[1727813611318,6.9266,144.38,144.25,23.45821515]
[1727813611602,6.9252,144.4,144.26,1.38542191]
[1727813611821,6.9262,144.38,144.25,23.45821515]
[1727813611993,6.9256,144.39,144.25,23.45821515]
[1727813612321,6.9252,144.4,144.26,1.38542286]
[1727813612508,6.9271,144.37,144.25,23.45821515]
[1727813612686,6.9273,144.36,144.25,23.45821515]
[1727813612893,6.9277,144.35,144.25,23.45821515]
[1727813613092,20.0,144.39,144.25,23.45821515]
[1727813613287,6.928,144.34,144.25,16.2089]
[1727813613502,20.0,144.39,144.25,16.2089]
[1727813613716,20.0,144.37,144.26,1.38574474]
[1727813614008,17.313,144.41,144.25,16.2089]
[1727813614205,20.0,144.39,144.25,16.2089]
[1727813614415,6.928,144.35,144.25,16.2089]
[1727813614705,20.0,144.39,144.25,16.2089]
[1727813614706,6.9286,144.33,144.25,16.2089]
[1727813615496,6.929,144.32,144.21,8.95168927]
[1727813615800,6.9285,144.33,144.21,8.95168927]
[1727813616223,6.9291,144.32,144.2,21.8721]
[1727813617192,6.1389,144.34,144.2,21.8721]
[1727813617437,6.9295,144.31,144.2,21.8721]
[1727813618012,26.9289,144.33,144.2,30.86813492]
[1727813618318,26.9289,144.33,144.2,39.81982419]
[1727813618700,20.0,144.33,144.21,23.776884]
[1727813618903,20.0,144.33,144.23,23.776884]
[1727813618904,26.9286,144.33,144.23,23.776884]
[1727813619207,2.0,144.38,144.21,17.94772419]
[1727813619208,2.0,144.38,144.21,23.776884]
[1727813619519,6.9257,144.39,144.28,23.776884]
[1727813620612,20.0,144.42,144.28,23.776884]
[1727813620820,6.9261,144.38,144.28,23.776884]
[1727813621196,20.0,144.42,144.28,23.776884]
[1727813621604,2.9476,144.44,144.3,30.187584]
[1727813621902,2.9476,144.44,144.32,23.776884]
[1727813621903,6.9238,144.43,144.32,23.776884]
[1727813622109,6.9238,144.43,144.33,1.38517815]
[1727813622315,6.079,144.45,144.3,6.4107]
[1727813622717,6.9271,144.36,144.3,6.4107]
[1727813622899,6.927,144.37,144.3,6.4107]
[1727813623103,20.0,144.42,144.29,15.5001]
[1727813623316,6.9264,144.38,144.29,15.5001]
[1727813624402,43.776884,144.4,144.29,15.5001]
[1727813624715,6.9272,144.36,144.29,15.5001]
[1727813625103,6.9261,144.38,144.29,15.5001]
[1727813625301,6.9267,144.37,144.29,15.5001]
[1727813625503,6.9271,144.36,144.29,15.5001]
[1727813627325,6.9272,144.36,144.29,15.5001]
[1727813628123,6.9289,144.33,144.26,6.1802]
[1727813628297,17.3173,144.37,144.26,6.1802]
[1727813628496,50.362984,144.36,144.24,16.3785]
[1727813628714,6.9305,144.29,144.24,16.3785]
[1727813629117,6.93,144.3,144.24,16.3785]
[1727813629319,20.0,144.34,144.24,16.3785]
[1727813629623,6.93,144.3,144.24,16.3785]
[1727813630898,6.9306,144.29,144.24,16.3785]
[1727813632513,20.0,144.34,144.24,16.3785]
[1727813632705,6.9312,144.28,144.24,16.3785]
[1727813633029,20.0,144.34,144.21,6.0631]
[1727813633030,6.9316,144.27,144.21,6.0631]
[1727813633411,17.3242,144.31,144.21,6.0631]
[1727813633412,6.931,144.28,144.22,1.38656621]
[1727813633728,17.3242,144.31,144.21,6.0631]
[1727813633729,6.9318,144.27,144.21,6.0631]
[1727813635526,20.0,144.33,144.21,6.0631]
[1727813635706,20.0,144.31,144.22,10.33818133]
[1727813635901,20.0,144.31,144.22,18.73411095]
[1727813636303,6.9295,144.31,144.22,18.73411095]
[1727813636605,6.9304,144.3,144.22,18.73411095]
[1727813636807,20.0,144.33,144.21,6.0631]
[1727813637724,6.9315,144.27,144.21,6.0631]
[1727813638801,6.932,144.26,144.21,6.0631]
[1727813640632,20.0,144.25,144.15,16.6845939]
[1727813640823,20.0,144.25,144.15,0.8331939]
[1727813640824,6.9356,144.19,144.15,0.8331939]
[1727813641153,17.3326,144.24,144.15,0.8331939]
[1727813641154,6.9367,144.16,144.15,0.8331939]
[1727813641315,40.84,144.25,144.15,0.8331939]
[1727813641316,20.0,144.19,144.15,0.8331939]
[1727813641522,6.9362,144.17,144.15,0.8331939]
[1727813642432,17.3338,144.23,144.15,0.8331939]
[1727813642433,20.0,144.22,144.15,0.8331939]
[1727813642633,6.9352,144.2,144.15,0.8331939]
[1727813643210,20.0,144.22,144.15,0.8331939]
[1727813643440,6.9362,144.18,144.15,0.8331939]
[1727813643739,34.6667,144.24,144.15,0.8331939]
[1727813643740,6.9367,144.16,144.15,0.8331939]
[1727813643920,37.337,144.2,144.15,0.8331939]
[1727813643921,6.9362,144.18,144.15,0.8331939]
[1727813644421,6.9363,144.17,144.15,0.8331939]
[1727813645140,20.0,144.2,144.15,0.8331939]
[1727813645347,6.9353,144.19,144.15,0.8331939]
[1727813645724,20.0,144.19,144.15,0.8331939]
[1727813645926,20.0,144.21,144.15,0.8331939]
[1727813645927,6.9343,144.21,144.15,0.8331939]
[1727813646158,17.3314,144.25,144.15,0.8331939]
[1727813646346,6.9339,144.22,144.15,0.8331939]
[1727813646828,17.3314,144.25,144.15,0.8331939]
[1727813647343,6.9342,144.22,144.15,0.8331939]
[1727813647851,6.9343,144.21,144.15,0.8331939]
[1727813649158,20.0,144.24,144.15,0.8331939]
[1727813649539,18.99254624,144.31,144.15,0.8331939]
[1727813649740,6.9315,144.27,144.17,15.8896]
[1727813650045,28.26892217,144.31,144.18,1.38683003]
[1727813650226,28.26892217,144.31,144.17,15.8896]
[1727813650227,12.94482217,144.31,144.17,15.8896]
[1727813650433,6.9332,144.24,144.17,15.8896]
[1727813651259,17.3291,144.27,144.17,15.8896]
[1727813651441,6.9337,144.23,144.17,15.8896]
[1727813651646,20.0,144.26,144.17,15.8896]
[1727813651851,6.9328,144.24,144.17,17.27661389]
[1727813652253,20.0,144.26,144.17,17.27661389]
[1727813652459,20.0,144.26,144.17,15.8896]
[1727813652460,6.9334,144.23,144.17,15.8896]
[1727813654362,43.776884,144.24,144.17,15.8896]
[1727813654561,6.9351,144.2,144.16,0.7903381]
[1727813655446,43.776884,144.24,144.16,0.7903381]
[1727813655447,6.9354,144.19,144.16,0.7903381]
[1727813655665,6.9349,144.2,144.16,0.7903381]
[1727813656875,17.3268,144.29,144.16,0.7903381]
[1727813657041,6.79511987,144.28,144.17,1.3869171]
[1727813657235,24.12401987,144.27,144.16,0.7903381]
[1727813657547,6.9351,144.2,144.16,0.7903381]
[1727813657754,17.3323,144.24,144.16,0.7903381]
[1727813657755,6.9345,144.21,144.16,0.7903381]
[1727813658165,6.9343,144.21,144.16,0.7903381]
[1727813658356,20.0,144.23,144.16,0.7903381]
[1727813658664,6.9346,144.21,144.16,0.7903381]
[1727813659469,6.9339,144.22,144.16,0.7903381]
[1727813659649,6.9344,144.21,144.16,0.7903381]
[1727813660372,6.9351,144.2,144.16,0.7903381]
[1727813660750,6.9349,144.2,144.16,0.7903381]
[1727813660948,20.0,144.22,144.16,0.7903381]
[1727813661158,6.9353,144.19,144.16,0.7903381]
[1727813661356,6.9349,144.2,144.16,0.7903381]
[1727813662474,6.9353,144.19,144.16,0.7903381]
[1727813662971,6.9362,144.17,144.16,0.7903381]
[1727813663697,50.713084,144.17,144.16,0.7903381]
[1727813663875,26.9362,144.17,144.16,0.7903381]
[1727813664066,6.9362,144.17,144.16,0.7903381]
[1727813664466,6.936,144.18,144.16,0.7903381]
[1727813666254,20.0,144.2,144.16,0.7903381]
[1727813666680,6.9361,144.18,144.16,0.7903381]
[1727813667570,6.9362,144.17,144.16,0.7903381]
[1727813667769,26.9362,144.17,144.16,0.7903381]
[1727813668772,50.713084,144.17,144.16,0.7903381]
[1727813670381,26.9362,144.17,144.16,0.7903381]
[1727813671685,6.939,144.12,144.06,21.7058]
[1727813672585,20.0,144.15,144.06,21.7058]
[1727813672888,6.9388,144.12,144.06,21.7058]
[1727813673267,6.9392,144.11,144.06,21.7058]
[1727813673882,20.0,144.13,144.06,21.7058]
[1727813673883,6.94,144.1,144.06,21.7058]
[1727813674271,20.0,144.13,144.06,21.7058]
[1727813674479,6.9383,144.13,144.06,21.7058]
[1727813674993,6.9389,144.12,144.06,21.7058]
[1727813675360,20.0,144.16,144.06,21.7058]
[1727813675576,6.9387,144.12,144.06,21.7058]
[1727813676186,6.9396,144.1,144.06,21.7058]
[1727813676882,20.0,144.14,144.06,21.7058]
[1727813677394,6.9399,144.1,144.06,21.7058]
[1727813678064,6.9401,144.09,144.06,21.7058]
[1727813678271,6.9406,144.08,144.06,21.7058]
[1727813678702,6.9401,144.09,144.06,21.7058]
[1727813679858,6.9401,144.09,144.02,15.1606]
[1727813680186,20.0,144.1,144.02,15.1606]
[1727813680376,6.9415,144.06,144.02,15.1606]
[1727813680889,6.9412,144.07,144.02,15.1606]
[1727813681759,20.0,144.1,144.02,15.1606]
[1727813682073,7.24160089,144.13,144.02,15.1606]
[1727813682074,1.19911522,144.14,144.03,23.776884]
[1727813682279,6.576,144.19,144.02,15.1606]
[1727813682495,6.942,144.06,144.02,15.1606]
[1727813682697,17.3495,144.1,144.02,15.1606]
[1727813682877,6.9426,144.04,144.02,15.1606]
[1727813683223,6.9434,144.02,144.01,0.8222048]
[1727813683398,20.0,144.02,143.97,22.8207]
[1727813683901,6.9449,143.99,143.97,22.8207]
[1727813684097,38.1928,144.07,143.92,22.8207]
[1727813684098,6.9459,143.97,143.92,22.8207]
[1727813684898,23.776884,144.02,143.92,22.8207]
[1727813685102,6.9465,143.96,143.92,22.8207]
[1727813685279,17.3607,144.01,143.92,22.8207]
[1727813685477,6.9458,143.98,143.92,22.8207]
[1727813685686,6.9459,143.97,143.92,22.8207]
[1727813685907,43.776884,144.0,143.87,0.8222048]
[1727813687078,6.9468,143.95,143.87,0.8222048]
[1727813687278,6.9475,143.94,143.87,0.8222048]
[1727813687993,6.9478,143.93,143.87,0.8222048]
[1727813688294,17.3638,143.98,143.87,0.8222048]
[1727813688598,43.776884,143.94,143.87,0.8222048]
[1727813688787,6.9511,143.87,143.75,15.5593]
[1727813688987,20.0,143.93,143.75,15.5593]
[1727813688988,6.9513,143.86,143.75,15.5593]
[1727813689187,43.776884,143.91,143.75,15.5593]
[1727813689487,23.776884,143.91,143.75,15.5593]
[1727813689795,23.776884,143.91,143.77,15.09]
[1727813689796,20.0,143.91,143.77,15.09]
[1727813690011,6.9487,143.92,143.8,15.09]
[1727813690173,23.776884,143.94,143.8,15.09]
[1727813690174,20.0,143.94,143.8,15.09]
[1727813690390,6.9507,143.87,143.8,15.09]
[1727813690800,6.9502,143.89,143.8,15.09]
[1727813690985,6.9506,143.88,143.8,15.09]
[1727813692577,6.9498,143.89,143.8,15.09]
[1727813693502,23.776884,143.92,143.8,15.09]
[1727813693807,6.9502,143.88,143.8,15.09]
[1727813694205,6.9498,143.89,143.8,15.09]
[1727813695273,27.25177258,143.93,143.8,15.09]
[1727813695480,6.9492,143.9,143.8,15.09]
[1727813695702,6.9498,143.89,143.8,15.09]
[1727813696508,6.9507,143.87,143.8,15.09]
[1727813697379,20.0,143.92,143.8,15.09]
[1727813697584,6.9522,143.84,143.8,15.09]
[1727813697998,6.9531,143.82,143.8,15.09]
[1727813698203,6.9536,143.81,143.72,0.8222048]
[1727813698424,23.776884,143.88,143.72,0.8222048]
[1727813698425,43.776884,143.84,143.76,16.0007]
[1727813698705,6.9546,143.79,143.76,16.0007]
[1727813699280,6.9542,143.8,143.76,16.0007]
[1727813699597,20.0,143.87,143.76,16.0007]
[1727813699793,6.9517,143.85,143.76,16.0007]
[1727813700006,20.0,143.87,143.76,16.0007]
[1727813700188,6.9522,143.84,143.76,16.0007]
[1727813700386,17.3751,143.89,143.76,16.0007]
[1727813700593,6.9522,143.84,143.76,16.0007]
[1727813701694,20.0,143.91,143.76,16.0007]
[1727813701901,17.3736,143.9,143.76,16.0007]
[1727813702105,6.9525,143.84,143.76,16.0007]
[1727813702484,17.3798,143.85,143.76,16.0007]
[1727813702691,20.0,143.83,143.76,16.0007]
[1727813703310,8.78098822,143.87,143.76,16.0007]
[1727813703311,6.9525,143.84,143.76,16.0007]
[1727813703512,6.9527,143.83,143.76,16.0007]
[1727813703815,6.9515,143.86,143.77,1.39095286]
[1727813704191,17.3726,143.91,143.76,16.2082264]
[1727813704192,6.9508,143.87,143.76,16.2082264]
[1727813704387,6.9507,143.87,143.76,16.2082264]
[1727813704608,17.3726,143.91,143.76,16.2082264]
[1727813704994,34.7461,143.91,143.76,16.2082264]
[1727813705525,6.9523,143.84,143.76,16.2082264]
[1727813705992,6.9523,143.84,143.77,1.39090405]
[1727813706196,6.9517,143.85,143.77,1.39090405]
[1727813706932,6.9522,143.84,143.76,16.2082264]
[1727813707396,17.3773,143.87,143.76,16.2082264]
[1727813707397,6.9527,143.83,143.76,16.2082264]
[1727813707599,6.9555,143.77,143.76,16.2082264]